[Event "12th WLC Weekend 2022"]
[Site "Eindhoven"]
[Date "2022.05.13"]
[Round "1.6"]
[White "Van Roon, Sjoerd"]
[Black "Winkels, Marcel"]
[Result "1-0"]
[ECO "B51"]
[WhiteElo "2264"]
[BlackElo "1965"]
[Annotator "TA"]
[PlyCount "85"]
[EventDate "2022.05.13"]
[EventType "swiss"]
[EventCountry "NED"]
[SourceTitle "playchess.com"]
[Source "ChessBase"]
[SourceQuality "1"]
[TimeControl "5400+30"]

{[%evp 9,85,16,20,16,24,0,2,0,0,0,0,0,-7,-47,-35,-58,-47,-43,-24,-35,-25,-50,-5,-31,-12,-5,0,0,0,0,0,0,0,-7,63,45,44,52,101,112,158,115,233,231,641,643,659,585,574,575,603,424,687,475,464,435,435,435,435,435,459,449,451,443,441,441,570,562,583,563,570,536,654,643,942,935,884,854]} 1. e4 {[%emt 0:00:03]} c5 {[%emt 0:00:04]} 2. Nf3 {[%emt 0:00:03]} d6 {[%emt 0:00:05]} 3. Bb5+ {[%emt 0:00:07]} Nd7 {[%emt 0:00:06]} 4. Ba4 {[%emt 0:00:09]} Ngf6 {[%emt 0:00:32]} 5. O-O {[%emt 0:00:07]} e6 {[%emt 0:00:17]} 6. Re1 {[%emt 0:00:08] B51: Sicilian: Moscow Variation (3 Bb5+) without 3...Bd7.} a6 {[%emt 0:00:09] [#] Strongly threatening ...b5.} 7. c4 {[%emt 0:00:11] Against b5} Be7 {[%emt 0:00:10]} 8. Nc3 {[%emt 0:00:08] The position is equal.} O-O {[%emt 0:00:26]} 9. d4 {[%emt 0:00:58]} cxd4 $1 {[%emt 0:00:17]} 10. Qxd4 {[%emt 0:00:28]} Qc7 {[%emt 0:01:27]} 11. Bg5 {[%emt 0:01:49]} Ne5 {[%emt 0:06:54]} (11... h6 {keeps more tension.} 12. Bxd7 hxg5 13. Bxc8 Raxc8 14. Nxg5 Nd7) 12. Nd2 {[%emt 0:05:09]} Bd7 {[%emt 0:02:56]} 13. Bxd7 {[%emt 0:03:30]} Nexd7 {[%emt 0:00:43] [#]} 14. h3 $146 {[%emt 0:02:00]} ({Predecessor:} 14. Rac1 Qc5 15. Be3 Qxd4 16. Bxd4 Rac8 17. b3 Rc6 18. f4 Rfc8 19. Rcd1 Bd8 20. e5 dxe5 21. fxe5 {1-0 (36) Kosteniuk,A (2526)-Heinemann,J (2292) Chess.com INT 2021}) 14... Rac8 {[%emt 0:02:40]} 15. Rac1 {[%emt 0:03:05]} Rfe8 {[%emt 0:06:20]} (15... h6 $5 {[%cal Rh6g5]} 16. Bh4 Ne5 $11) 16. a3 {[%emt 0:05:03]} Qc5 {[%emt 0:07:25]} 17. Be3 {[%emt 0:04:19]} Qxd4 {[%emt 0:02:06]} 18. Bxd4 {[%emt 0:00:05]} Ne5 {[%emt 0:03:26]} 19. Bxe5 {[%emt 0:01:49]} dxe5 {[%emt 0:00:06]} 20. b4 {[%emt 0:01:41]} Red8 {[%emt 0:01:43]} 21. Rc2 {[%emt 0:01:55]} a5 {[%emt 0:05:18]} (21... Rd3 $11) 22. c5 $14 {[%emt 0:04:15]} axb4 {[%emt 0:00:28]} 23. axb4 {[%emt 0:00:19]} Rd4 {[%emt 0:04:48] Against Nc4. White stays focused until the end.} (23... g6 $14) 24. Rb1 $16 {[%emt 0:01:42]} Nd7 {[%emt 0:18:01]} (24... Rdd8 $142) 25. Kf1 {[%emt 0:02:22] And now Nb5 would win.} b6 {[%emt 0:01:38]} (25... Nb8 $16) 26. Nb5 $18 {[%emt 0:00:22]} Rxd2 $2 {[%emt 0:08:57]} (26... bxc5 27. Nxd4 exd4 28. bxc5 Rxc5 29. Rxc5 Nxc5 30. Rb8+ Bf8) 27. Rxd2 {[%emt 0:00:08] White is clearly winning.} Nf6 {[%emt 0:00:02]} 28. cxb6 {[%emt 0:01:51] [#] Threatens to win with Na7.} Rb8 {[%emt 0:02:17]} 29. Rc1 {[%emt 0:01:27]} h5 {[%emt 0:02:22]} 30. Nd6 {[%emt 0:02:15] Hoping for Rc8+.} Kh7 {[%emt 0:11:21]} (30... Rxb6 $142 31. Rc8+ Kh7) 31. Nxf7 {[%emt 0:02:36]} Rxb6 {[%emt 0:00:51]} 32. Rc4 {[%emt 0:02:49]} Rxb4 {[%emt 0:04:38]} 33. Rxb4 {[%emt 0:00:22]} Bxb4 {[%emt 0:00:02][%mdl 4096] Endgame KRN-KBN} 34. Re2 {[%emt 0:00:09]} Bc3 {[%emt 0:00:17]} 35. Ng5+ {[%emt 0:00:07]} Kg6 {[%emt 0:00:48]} 36. Nxe6 {[%emt 0:00:05]} Kf7 {[%emt 0:00:16]} 37. Ng5+ {[%emt 0:01:22]} Kg6 {[%emt 0:02:39]} 38. Nf3 {[%emt 0:01:04]} Kf7 {[%emt 0:00:20]} 39. Re3 {[%emt 0:00:29]} Bb2 {[%emt 0:00:31]} 40. Ke2 {[%emt 0:00:27]} Ke6 {[%emt 0:01:24]} 41. Rb3 {[%emt 0:00:22]} Ba1 {[%emt 0:00:17]} 42. Kd3 {[%emt 0:00:48]} Nd7 {[%emt 0:00:12]} 43. Rb1 {[%emt 0:00:09] Weighted Error Value: White=0.21 (precise) /Black=0.42} 1-0

[Event "12th WLC Weekend 2022"]
[Site "Eindhoven"]
[Date "2022.05.13"]
[Round "1.7"]
[White "Krueger, Andre"]
[Black "Baselmans, Sam"]
[Result "0-1"]
[ECO "A49"]
[WhiteElo "1970"]
[BlackElo "2175"]
[Annotator "TA"]
[PlyCount "126"]
[EventDate "2022.05.13"]
[EventType "swiss"]
[EventCountry "NED"]
[SourceTitle "playchess.com"]
[Source "ChessBase"]
[SourceQuality "1"]
[TimeControl "5400+30"]

{[%evp 16,126,28,20,25,34,35,27,34,34,35,33,31,0,13,7,14,16,24,19,12,0,0,0,22,29,73,25,20,-10,-9,-18,0,-11,0,0,0,0,-2,-15,-12,-12,0,0,0,-50,-50,-49,-44,-68,-56,-66,-54,-61,-54,-57,-58,-61,-67,-68,-68,-68,-67,-137,-12,-12,-12,-19,-19,-54,-8,-51,-50,-64,-8,-85,-58,-85,-84,-440,-259,-227,-19,-1473,-1198,-1843,-1551,-1172,-533,-8840,-2011,-29960,-29950,-29953,-29950,-29961,-29958,-29963,-29964,-29969,-29961,-29959,-29951,-29976,-29977,-29977,-29978,-29977,-29978,-29985,-29986,-29997,-29974]} 1. d4 {[%emt 0:00:06]} Nf6 {[%emt 0:00:07]} 2. Nf3 {[%emt 0:00:14]} g6 {[%emt 0:00:14]} 3. g3 {[%emt 0:00:16]} Bg7 {[%emt 0:00:08]} 4. Bg2 {[%emt 0:00:13]} O-O {[%emt 0:00:09]} 5. O-O {[%emt 0:00:29]} d6 {[%emt 0:00:07]} 6. b3 {[%emt 0:00:33]} c6 {[%emt 0:00:15]} 7. Bb2 {[%emt 0:00:48]} Nbd7 {[%emt 0:00:14] 7...Bf5 is more fashionable.} 8. Nbd2 {[%emt 0:05:49]} Qc7 {[%emt 0:00:27]} 9. a4 {[%emt 0:02:26]} a5 {[%emt 0:01:00] A49: 1 d4 Nf6 2 Nf3 g6 3 g3: Anti-King's Indian systems.} 10. Re1 {[%emt 0:01:49]} Re8 {[%emt 0:00:44]} 11. e4 {[%emt 0:00:25]} e5 {[%emt 0:00:27] White has an edge.} 12. dxe5 {[%emt 0:01:22]} dxe5 {[%emt 0:00:07]} 13. Nc4 {[%emt 0:09:38]} Bf8 $1 {[%emt 0:01:08] [#] Inhibits Qd6.} 14. Ba3 $146 {[%emt 0:00:56]} (14. Qd2 $5 {[%cal Ra1d1]}) ({Predecessor:} 14. Qd2 Bb4 15. Bc3 Bxc3 16. Qxc3 b6 17. Rad1 Ba6 18. Nd6 Re7 19. Bh3 Rd8 20. Ng5 {1-0 (52) Pulpan,J (2405)-Vrana,F (2236) Chess.com INT 2021}) 14... Bxa3 {[%emt 0:01:35]} 15. Rxa3 {[%emt 0:00:19]} Nc5 {[%emt 0:02:37]} 16. Qd6 {[%emt 0:00:34]} Qxd6 {[%emt 0:01:35]} 17. Nxd6 {[%emt 0:00:02]} Re7 {[%emt 0:01:20]} 18. Nxc8 {[%emt 0:24:08]} Rxc8 {[%emt 0:00:10]} 19. Nd2 {[%emt 0:00:12]} Rd8 {[%emt 0:04:47]} 20. Nc4 {[%emt 0:00:58]} Rd4 {[%emt 0:01:27][%cal Rc5e4]} 21. Nxa5 {[%emt 0:07:49]} ({Better is} 21. f3 $16) 21... Ncxe4 $11 {[%emt 0:03:47]} ({But not} 21... Nfxe4 22. b4 $16) 22. Bxe4 {[%emt 0:02:42]} Nxe4 {[%emt 0:02:14]} 23. Nc4 {[%emt 0:08:41]} f6 {[%emt 0:04:27]} 24. a5 {[%emt 0:02:05]} Nc5 {[%emt 0:09:42]} 25. Raa1 {[%emt 0:19:48]} Red7 {[%emt 0:01:05]} 26. Ne3 {[%emt 0:05:48]} Kf7 {[%emt 0:02:20]} 27. Red1 {[%emt 0:00:32]} Ke6 {[%emt 0:01:07]} 28. Kf1 {[%emt 0:02:07]} Ne4 {[%emt 0:07:22]} (28... g5 {is interesting.} 29. g4 h5 30. gxh5 Rh7) 29. Rxd4 {[%emt 0:02:01]} exd4 {[%emt 0:01:45][%mdl 4096] Endgame KRN-KRN} 30. Nd1 {[%emt 0:00:05]} (30. Ng2 $11) 30... d3 $15 {[%emt 0:00:36]} 31. cxd3 {[%emt 0:01:45]} Rxd3 {[%emt 0:00:32]} 32. Ke2 {[%emt 0:00:22]} Rxb3 {[%emt 0:00:23] Black is much more active.} 33. a6 {[%emt 0:00:09]} bxa6 {[%emt 0:00:08]} 34. Rxa6 {[%emt 0:00:04]} Nc3+ {[%emt 0:15:41]} 35. Nxc3 {[%emt 0:00:05]} Rxc3 {[%emt 0:00:05] KR-KR} 36. Ra7 {[%emt 0:00:06]} h5 {[%emt 0:00:15]} 37. h4 {[%emt 0:01:40]} Rc2+ {[%emt 0:01:08]} 38. Ke3 {[%emt 0:00:10]} c5 {[%emt 0:00:29]} 39. f3 {[%emt 0:01:30]} (39. Rb7 $15) 39... Kf5 {[%emt 0:00:47]} ({Black should play} 39... Rg2 $1 $17 40. Ra6+ Ke5) 40. Rc7 $1 $11 {[%emt 0:00:22]} Rc3+ {[%emt 0:01:09]} 41. Ke2 {[%emt 0:00:16]} Rc1 {[%emt 0:03:22]} 42. Rc6 {[%emt 0:00:49]} Ke5 {[%emt 0:00:53]} (42... Rc2+ $15 {might be stronger.} 43. Kd3 Rg2) 43. Ke3 {[%emt 0:00:35]} Rc3+ {[%emt 0:00:53]} 44. Ke2 {[%emt 0:00:09]} c4 {[%emt 0:00:12]} (44... Rc2+ $1 $15 45. Ke3 c4) 45. Kf2 {[%emt 0:00:37]} (45. g4 $11) 45... Rc1 {[%emt 0:01:04]} 46. Ke3 {[%emt 0:00:12]} c3 {[%emt 0:00:43]} 47. g4 $2 {[%emt 0:00:57][%mdl 8192]} (47. Kd3 $17 {is more resistant.}) 47... hxg4 {[%emt 0:02:13]} (47... c2 $142 {aiming for ...Re1+.} 48. Kd3 Rh1 49. Rxc2 Rxh4 50. gxh5 gxh5) 48. fxg4 $19 {[%emt 0:00:01]} c2 $2 {[%emt 0:00:57]} (48... Rg1 $19 49. h5 Rxg4) 49. Kd2 $2 {[%emt 0:00:49][%mdl 8192]} (49. Rc5+ $11 Kd6 50. Rc3) 49... Rg1 {[%emt 0:02:16]} 50. h5 {[%emt 0:00:31]} g5 $1 {[%emt 0:02:06][%cal Bg6g5,Bg5g4,Bg4g3][%mdl 32]} 51. Rxc2 {[%emt 0:00:41]} Rxg4 {[%emt 0:00:38]} 52. Rc8 {[%emt 0:00:28]} Rh4 {[%emt 0:00:19] ( -> ...g4)} 53. Rh8 {[%emt 0:00:05]} Kf5 {[%emt 0:00:40] Black mates.} 54. Ke3 {[%emt 0:01:12]} g4 {[%emt 0:00:33]} 55. h6 {[%emt 0:00:27]} Rh3+ {[%emt 0:00:09]} 56. Kf2 {[%emt 0:00:09] [#]} Kf4 $1 {[%emt 0:02:05]} 57. h7 {[%emt 0:00:22]} f5 {[%emt 0:00:32]} 58. Kg2 {[%emt 0:00:23]} Rh6 {[%emt 0:00:48]} 59. Kg1 {[%emt 0:01:29]} g3 {[%emt 0:01:41]} 60. Kg2 {[%emt 0:00:20]} Rh5 {[%emt 0:01:07]} 61. Kg1 {[%emt 0:00:36]} Rh2 {[%emt 0:00:43]} 62. Kf1 {[%emt 0:00:23] [#]} Kf3 $1 {[%emt 0:00:19][%cal Rh2h1]} 63. Kg1 {[%emt 0:00:22]} f4 {[%emt 0:00:05] Weighted Error Value: White=0.62/Black=0.21 (precise)} 0-1

[Event "12th WLC Weekend 2022"]
[Site "Eindhoven"]
[Date "2022.05.13"]
[Round "1.8"]
[White "Iolis, Oleg"]
[Black "Van Zon, Paul"]
[Result "1-0"]
[ECO "B33"]
[WhiteElo "2201"]
[BlackElo "2000"]
[Annotator "TA"]
[PlyCount "75"]
[EventDate "2022.05.13"]
[EventType "swiss"]
[EventCountry "NED"]
[SourceTitle "playchess.com"]
[Source "ChessBase"]
[SourceQuality "1"]
[TimeControl "5400+30"]

{[%evp 19,75,0,8,8,0,-17,-13,0,36,17,33,21,14,25,50,71,72,56,87,9,15,22,56,48,60,66,141,152,177,187,245,192,304,308,358,378,435,256,256,250,212,148,288,234,566,514,568,579,579,577,552,545,553,531,521,509,495,508]} 1. e4 {[%emt 0:00:03]} c5 {[%emt 0:00:05]} 2. Nf3 {[%emt 0:00:04]} Nc6 {[%emt 0:00:07]} 3. d4 {[%emt 0:00:04]} cxd4 {[%emt 0:00:05]} 4. Nxd4 {[%emt 0:00:04]} Nf6 {[%emt 0:00:09]} 5. Nc3 {[%emt 0:00:04]} e5 {[%emt 0:00:05]} 6. Ndb5 {[%emt 0:00:05]} d6 {[%emt 0:00:06]} 7. Nd5 {[%emt 0:00:11]} Nxd5 {[%emt 0:00:17]} 8. exd5 {[%emt 0:00:04]} Nb8 {[%emt 0:00:10]} 9. a4 {[%emt 0:00:11]} Be7 {[%emt 0:02:08]} 10. Be2 {[%emt 0:00:06]} O-O {[%emt 0:00:14]} 11. O-O {[%emt 0:00:03] B33: Sicilian: Pelikan and Sveshnikov Variations.} f5 {[%emt 0:04:39]} 12. b4 {[%emt 0:00:25]} a6 {[%emt 0:11:31]} 13. Na3 {[%emt 0:00:05][%cal Bb5a3,Ba3c4,Bc4b6][%mdl 32] [#] The position is equal.} e4 $146 {[%emt 0:00:23]} ({Predecessor:} 13... f4 14. a5 Bf5 15. c4 Kh8 16. Bb2 Nd7 17. Rc1 e4 18. Kh1 Bf6 19. Bd4 Bxd4 20. Qxd4 {0-1 (42) Hakobyan,A (2588)-Gledura,B (2620) Chesterfield 2020}) 14. a5 {[%emt 0:00:35]} Bf6 {[%emt 0:01:32]} 15. Rb1 {[%emt 0:00:31]} Nd7 {[%emt 0:04:20]} 16. Nc4 {[%emt 0:00:44]} Ne5 {[%emt 0:00:55]} 17. Nb6 $1 {[%emt 0:01:07]} Rb8 {[%emt 0:00:06] [#]} 18. c4 $1 $36 {[%emt 0:00:52][%cal Bc2c4,Bc4c5][%mdl 2080] White is pushing.} g5 {[%emt 0:05:11]} 19. f4 {[%emt 0:02:37]} (19. Qc2 $16) 19... exf3 $1 $11 {[%emt 0:07:45]} 20. Bxf3 {[%emt 0:00:15]} f4 {[%emt 0:01:26]} 21. Be4 {[%emt 0:04:03]} Bg4 {[%emt 0:03:48]} 22. Qc2 {[%emt 0:00:44]} Kg7 {[%emt 0:10:30] White now steadily converts the win.} ({Black should try} 22... Qe7 $14) 23. c5 $16 {[%emt 0:01:17]} Rf7 {[%emt 0:03:25]} 24. Bb2 {[%emt 0:23:44]} (24. Bxh7 Qh8 25. Be4 Qh5 $11) 24... h6 {[%emt 0:06:36]} (24... Kg8 $142 25. Rfe1 Nd7) 25. h3 {[%emt 0:03:38]} Bh5 {[%emt 0:00:53]} (25... Bd7 $142 26. Nxd7 (26. cxd6 Bb5 $14) 26... Nxd7) 26. Rbe1 $18 {[%emt 0:03:35]} Rc7 {[%emt 0:03:15]} 27. Bf5 {[%emt 0:10:36]} Be8 {[%emt 0:09:20]} 28. Bxe5 {[%emt 0:00:44]} (28. Qb1 $142) 28... Bxe5 {[%emt 0:00:22] [#]} 29. Rxe5 {[%emt 0:01:26][%mdl 512]} dxe5 {[%emt 0:00:06]} 30. Be6 {[%emt 0:10:21] Prevents Rf7. Strongly threatening Qb2.} Re7 {[%emt 0:05:36]} (30... Bg6 $2 31. Qc3) (30... Qf6 $16 {was worth a try.}) 31. Qf5 {[%emt 0:05:20]} Rxe6 {[%emt 0:01:28]} (31... Bf7 {is a better chance.} 32. Qxe5+ (32. Nd7 Rxd7 33. Bxd7 Qf6 $18) 32... Kg8) 32. Qxe6 {[%emt 0:00:13] White is clearly winning.} Qf6 {[%emt 0:00:20] [#]} 33. Qxf6+ {[%emt 0:10:41]} Kxf6 {[%emt 0:00:20]} 34. Rc1 {[%emt 0:00:24] c6 is the strong threat.} Rd8 {[%emt 0:05:41]} 35. c6 {[%emt 0:00:24]} bxc6 {[%emt 0:00:21]} 36. dxc6 {[%emt 0:00:04]} Bxc6 {[%emt 0:00:06]} 37. Rxc6+ {[%emt 0:00:05]} Kf5 {[%emt 0:00:05]} 38. Nc4 {[%emt 0:00:38] Weighted Error Value: White=0.17 (very precise) /Black=0.47} 1-0

[Event "12th WLC Weekend 2022"]
[Site "Eindhoven"]
[Date "2022.05.13"]
[Round "1.9"]
[White "De Vries, Leon"]
[Black "Jansen, Bob"]
[Result "0-1"]
[ECO "A04"]
[WhiteElo "1951"]
[BlackElo "2174"]
[Annotator "TA"]
[PlyCount "66"]
[EventDate "2022.05.13"]
[EventType "swiss"]
[EventCountry "NED"]
[SourceTitle "playchess.com"]
[Source "ChessBase"]
[SourceQuality "1"]
[TimeControl "5400+30"]

{[%evp 9,66,27,29,30,29,21,19,20,19,25,19,16,20,12,20,29,23,19,23,18,22,17,46,-18,-20,-54,-57,-76,-67,-65,-32,-35,-8,-12,0,0,0,0,27,0,0,0,16,0,77,0,22,17,13,-243,-247,-219,-244,-230,-247,-277,-245,-331,-331]} 1. Nf3 {[%emt 0:00:07]} e6 {[%emt 0:00:17]} 2. g3 {[%emt 0:00:18]} f5 {[%emt 0:00:55]} 3. Bg2 {[%emt 0:00:46]} Nf6 {[%emt 0:00:06]} 4. O-O {[%emt 0:00:14]} d5 {[%emt 0:00:08]} 5. d3 {[%emt 0:00:10]} Nc6 {[%emt 0:02:24]} 6. c4 {[%emt 0:02:22] A04: Unusual lines after 1 Nf3 and King's Indian Attack.} dxc4 {[%emt 0:06:15]} 7. dxc4 {[%emt 0:00:20]} Qxd1 {[%emt 0:09:14]} 8. Rxd1 {[%emt 0:00:38] The position is equal.} e5 {[%emt 0:01:08][%cal Be6e5,Be5e4][%mdl 32] Prevents Bf4.} 9. Nc3 {[%emt 0:11:27] aiming for Nb5.} e4 $1 {[%emt 0:12:31] [#]} 10. Ne1 $146 {[%emt 0:01:09] Threatening Nb5.} ({Predecessor:} 10. Ng5 h6 11. Nh3 g5 12. Nb5 Rh7 13. b3 a6 14. Bb2 axb5 15. cxb5 Nb4 16. Bxf6 {½-½ (28) Kharitonov,A (2505)-Moskalenko,V (2505) Moscow 1992}) 10... Be6 {[%emt 0:04:08]} 11. b3 {[%emt 0:06:03]} Bd6 {[%emt 0:05:10]} 12. Nb5 {[%emt 0:08:04]} Be5 {[%emt 0:04:27]} 13. Bf4 {[%emt 0:01:22]} Bxf4 {[%emt 0:00:05]} 14. gxf4 {[%emt 0:00:03]} Rc8 {[%emt 0:00:12]} 15. Nc2 {[%emt 0:08:01]} Ke7 {[%emt 0:04:50]} 16. Nbd4 {[%emt 0:02:14]} (16. f3 $14) 16... Nxd4 $11 {[%emt 0:00:46]} 17. Rxd4 {[%emt 0:00:08]} c5 {[%emt 0:03:07]} 18. Rd2 {[%emt 0:00:49]} Rhd8 {[%emt 0:01:21]} 19. Rad1 {[%emt 0:00:12]} Rxd2 {[%emt 0:00:50]} (19... b5 {is more complex.} 20. cxb5 Nd5 21. Bf1 Nc3) 20. Rxd2 {[%emt 0:00:07]} Rc6 {[%emt 0:01:01]} 21. f3 {[%emt 0:04:40]} Ra6 {[%emt 0:03:09]} 22. Ne3 $1 {[%emt 0:02:19]} Ra3 {[%emt 0:01:04]} 23. Nd1 {[%emt 0:02:20]} Bd7 {[%emt 0:03:12]} 24. Kf2 {[%emt 0:05:34]} Bc6 {[%emt 0:10:54]} 25. Nc3 {[%emt 0:02:11]} Ra6 {[%emt 0:08:17]} 26. Ke3 {[%emt 0:08:20][%cal Rf3e4]} Rb6 {[%emt 0:00:05]} (26... exf3 $11 {remains equal.} 27. Bxf3 Bxf3 28. Kxf3 g6) 27. h3 {[%emt 0:01:41]} (27. fxe4 $16 Bxe4 28. Bxe4 (28. Nxe4 fxe4 29. f5 g5 $16)) 27... a5 {[%emt 0:01:22]} 28. fxe4 {[%emt 0:00:36]} fxe4 {[%emt 0:00:02]} 29. Nd5+ $2 {[%emt 0:01:06][%mdl 8192] Loses the game.} ({Avoid the trap} 29. Nxe4 $2 Bxe4 30. Bxe4 Re6 $19) (29. f5 $11 {and White stays safe.}) 29... Bxd5 $19 {[%emt 0:01:26]} 30. cxd5 {[%emt 0:00:06] [#]} Rb4 {[%emt 0:00:18]} 31. d6+ {[%emt 0:04:23]} Kd7 {[%emt 0:00:01]} 32. Rd1 {[%emt 0:05:04]} b5 {[%emt 0:04:21]} 33. Rc1 {[%emt 0:04:01]} Kxd6 {[%emt 0:01:58] Weighted Error Value: White=0.37/Black=0.12 (very precise)} 0-1

[Event "12th WLC Weekend 2022"]
[Site "Eindhoven"]
[Date "2022.05.13"]
[Round "1.10"]
[White "Bruil, Rembrandt"]
[Black "Verhoeven, Robin"]
[Result "1/2-1/2"]
[ECO "A80"]
[WhiteElo "2122"]
[BlackElo "1946"]
[Annotator "TA"]
[PlyCount "78"]
[EventDate "2022.05.13"]
[EventType "swiss"]
[EventCountry "NED"]
[SourceTitle "playchess.com"]
[Source "ChessBase"]
[SourceQuality "1"]
[TimeControl "5400+30"]

{[%evp 16,78,0,0,0,-22,-19,-31,-36,-35,-30,-43,-43,-47,-40,-30,-18,-19,-11,-12,-4,-9,-9,0,0,-22,-4,-35,-35,-35,-31,-36,-35,-35,-26,-50,-55,-50,-37,-86,-91,-91,-91,-91,-91,-91,-89,-91,-91,-91,-91,-91,-91,-91,-91,-92,-92,-92,-91,-92,-92,-109,-116,-89,0]} 1. d4 {[%emt 0:00:02]} f5 {[%emt 0:00:06]} 2. Nc3 {[%emt 0:00:04]} Nf6 {[%emt 0:00:16]} 3. Bg5 {[%emt 0:00:06]} c6 {[%emt 0:00:19]} 4. Bxf6 {[%emt 0:00:34]} exf6 {[%emt 0:00:06]} 5. e3 {[%emt 0:00:16]} d5 {[%emt 0:00:06]} 6. Bd3 {[%emt 0:00:08]} Bd6 {[%emt 0:01:00]} 7. h4 {[%emt 0:04:25]} h5 {[%emt 0:05:50]} 8. Qf3 {[%emt 0:00:22]} g6 {[%emt 0:03:01]} 9. Nge2 {[%emt 0:01:21]} Be6 {[%emt 0:00:41] A80: Dutch Defence: Unusual White second moves.} 10. Nf4 {[%emt 0:03:06]} Bf7 {[%emt 0:01:11]} 11. O-O-O {[%emt 0:03:26]} Nd7 {[%emt 0:01:57] [#] Black is slightly better.} 12. Rdg1 $146 {[%emt 0:07:25]} ({Predecessor:} 12. Kb1 Qe7 13. Nce2 O-O-O 14. Nc1 Kb8 15. g3 Nb6 16. Qe2 Bc7 17. c3 Nc4 18. Qc2 {1-0 (36) Nakamura,H (2736)-Maghsoodloo,P (2676) Chess.com INT 2020}) 12... Qa5 {[%emt 0:04:52]} 13. Qd1 {[%emt 0:10:44]} O-O-O {[%emt 0:06:07]} 14. Kb1 {[%emt 0:02:42]} Kb8 {[%emt 0:18:10]} (14... Ne5 {seems wilder.} 15. Ka1 Nc4 16. Nce2 Qb4) 15. Nfe2 {[%emt 0:02:46]} b5 {[%emt 0:09:29] Hoping for ...b4.} 16. Nc1 {[%emt 0:01:43]} Rhe8 {[%emt 0:02:41]} 17. g3 {[%emt 0:02:40]} Qc7 {[%emt 0:05:08]} 18. N3e2 {[%emt 0:04:22]} a5 {[%emt 0:05:25]} 19. Qd2 {[%emt 0:01:26]} Re7 {[%emt 0:03:02]} 20. Rd1 {[%emt 0:02:15]} Qa7 {[%emt 0:02:16]} 21. c3 {[%emt 0:05:06]} Nb6 {[%emt 0:00:40][%cal Bd7b6,Bb6c4,Bc4a3,Ba3b1][%mdl 32]} 22. Qc2 {[%emt 0:01:11]} Rb7 {[%emt 0:01:35]} 23. Ka1 {[%emt 0:06:03]} Nc4 {[%emt 0:02:33]} 24. Nb3 {[%emt 0:04:06]} Ka8 {[%emt 0:05:24]} (24... Kc7 {keeps more tension.} 25. Nd2 Rdb8 26. Rc1 a4) 25. Rb1 {[%emt 0:02:43]} Rdb8 {[%emt 0:01:07]} (25... b4 {looks sharper.} 26. Nc5 Bxc5 27. dxc5 b3) 26. Nd2 {[%emt 0:04:48]} b4 {[%emt 0:02:14]} 27. cxb4 {[%emt 0:06:50]} (27. Rhd1 $1 $15 {should be considered.}) 27... axb4 $17 {[%emt 0:00:56][%cal Oa7a2] ( -> ...Qxa2+!). Black is better.} 28. b3 {[%emt 0:12:37] [#]} Na3 {[%emt 0:01:08][%csl LRb1,LRc2]} 29. Qxc6 {[%emt 0:00:02]} Nxb1 {[%emt 0:00:23]} 30. Rxb1 {[%emt 0:00:01]} Qb6 {[%emt 0:00:19]} 31. Rc1 {[%emt 0:00:10]} Qxc6 {[%emt 0:02:17]} 32. Rxc6 {[%emt 0:00:01] Strongly threatening Ra6+.} Rb6 {[%emt 0:00:16]} 33. Rc1 {[%emt 0:00:35]} Kb7 {[%emt 0:00:44]} 34. Kb2 {[%emt 0:00:21]} Rc8 {[%emt 0:00:21]} 35. Rd1 {[%emt 0:00:15]} Rbc6 {[%emt 0:00:53]} 36. Nf3 {[%emt 0:00:29]} Kb6 {[%emt 0:00:45]} 37. Nf4 {[%emt 0:01:48]} R6c7 {[%emt 0:01:45]} 38. Bb1 {[%emt 0:00:16]} Bxf4 {[%emt 0:00:43]} 39. gxf4 {[%emt 0:00:01] [#]} Rc3 {[%emt 0:01:11] Weighted Error Value: White=0.07 (flawless) /Black=0.02 (flawless)} (39... Be8 $1 $17) 1/2-1/2